bitfinex-derivatives/quotes_ETHF0:USTF0_20250116
["timestamp","ask_amount","ask_price","bid_price","bid_amount"]
[1737053357472,2.2397,3318.7,3317.9,7.40778247]
[1737053357776,0.60277,3318.5,3318.4,0.60278]
[1737053358166,3.0152,3318.5,3318.4,0.60279]
[1737053358369,0.60275,3318.6,3318.3,3.2078]
[1737053358572,0.60277,3318.5,3318.3,3.81059]
[1737053358777,3.61797,3318.6,3318.4,0.60278]
[1737053359173,3.0152,3318.6,3318.3,3.2078]
[1737053359375,3.61795,3318.6,3318.5,0.60277]
[1737053359879,3.0152,3318.6,3318.5,0.60277]
[1737053360280,3.61795,3318.6,3318.5,0.60277]
[1737053360476,3.0152,3318.6,3318.5,0.60277]
[1737053360882,3.61797,3318.6,3318.4,0.60278]
[1737053361181,2.2397,3318.7,3318.3,3.8106]
[1737053361182,3.61799,3318.4,3318.3,3.8106]
[1737053361380,3.0152,3318.4,3318.3,5.0426]
[1737053361576,3.61799,3318.4,3318.3,5.0426]
[1737053361782,3.61799,3318.4,3318.3,1.8348]
[1737053362081,3.0152,3318.4,3318.3,1.8348]
[1737053362277,3.61799,3318.4,3318.3,1.8348]
[1737053362479,3.0152,3318.4,3318.3,1.8348]
[1737053363274,3.0152,3318.4,3318.3,1.232]
[1737053363480,3.0152,3318.4,3318.3,1.83481]
[1737053363680,2.2125,3318.6,3318.5,0.60277]
[1737053363984,3.61797,3318.5,3318.4,0.60279]
[1737053364383,3.0152,3318.5,3318.4,0.60279]
[1737053364880,2.84244,3318.7,3318.6,0.60275]
[1737053365086,2.84244,3318.7,3318.3,4.4398]
[1737053365087,3.0152,3318.6,3318.3,4.4398]
[1737053365276,3.61796,3318.6,3318.5,0.60276]
[1737053365884,3.0152,3318.6,3318.3,4.4398]
[1737053366084,3.61799,3318.4,3318.3,4.4398]
[1737053367381,3.61799,3318.4,3318.3,1.232]
[1737053368784,3.0152,3318.4,3318.2,0.60282]
[1737053368983,2.75241,3318.3,3318.2,0.60282]
[1737053369185,5.76761,3318.3,3318.2,1.83482]
[1737053371286,5.1648,3318.3,3318.2,1.83482]
[1737053371486,5.76761,3318.3,3318.2,1.83482]
[1737053372376,2.2397,3318.7,3318.2,1.83482]
[1737053372586,3.0152,3318.4,3318.3,0.60281]
[1737053373389,4.5509,3318.7,3318.2,5.04262]
[1737053373584,4.5509,3318.7,3318.6,0.60275]
[1737053374089,8.16883,3318.7,3318.6,0.60275]
[1737053374391,7.5661,3318.7,3318.6,41.40275]
[1737053374787,8.16883,3318.7,3318.6,41.40275]
[1737053375386,3.0152,3318.7,3318.6,0.60275]
[1737053375589,2.1357,3318.8,3318.7,0.60273]
[1737053375785,5.1509,3318.8,3318.7,41.40273]
[1737053376085,5.1509,3318.8,3318.7,44.61053]
[1737053376280,2.1357,3318.8,3318.7,46.91404053]
[1737053376687,3.2078,3319.5,3318.7,46.91404053]
[1737053376884,2.1477,3319.4,3319.3,0.60261]
[1737053377086,5.1629,3319.4,3319.3,1.83461]
[1737053378487,5.1629,3319.4,3319.3,4.13812053]
[1737053379387,2.3067,3319.7,3319.6,0.60257]
[1737053379583,2.1477,3319.9,3319.8,0.60253]
[1737053379789,5.76541,3319.9,3319.8,0.60253]
[1737053380785,5.76541,3319.9,3319.7,0.60255]
[1737053380786,0.60255,3319.8,3319.7,0.60255]
[1737053381292,3.61775,3319.8,3319.7,0.60255]
[1737053381489,3.0152,3319.8,3319.7,0.60255]
[1737053382296,2.1477,3319.9,3319.8,0.60253]
[1737053382493,2.293,3320.3,3319.6,5.51131053]
[1737053382794,2.293,3320.3,3320.2,0.60246]
[1737053382988,2.293,3320.3,3320.2,1.83446]
[1737053383684,2.1528,3320.4,3320.3,0.60244]
[1737053384491,3.81005,3321.4,3320.5,1.50601]
[1737053384697,3.2078,3321.4,3321.1,2.30351053]
[1737053384886,0.60225,3321.4,3321.3,0.60226]
[1737053385291,3.0152,3321.4,3321.3,0.60226]
[1737053385591,4.3914,3321.5,3321.4,0.60224]
[1737053385791,2.2425,3321.7,3321.6,0.60221]
[1737053385998,2.2425,3321.7,3321.6,3.81001]
[1737053386292,2.1383,3322.1,3321.8,0.60216]
[1737053386488,3.61734,3322.0,3321.8,0.60216]
[1737053386685,3.0152,3322.0,3321.6,3.2078]
[1737053386993,3.0152,3322.0,3321.8,0.60216]
[1737053386994,3.61734,3322.0,3321.8,0.60216]
[1737053387292,3.0152,3321.7,3321.2,44.0078]
[1737053387597,3.0152,3321.3,3321.2,3.81008]
[1737053387893,3.61746,3321.3,3321.2,1.83328]
[1737053388285,3.0152,3321.3,3321.2,1.231]
[1737053388489,3.61746,3321.3,3321.2,1.231]
[1737053388685,3.0152,3321.3,3320.8,3.2078]
[1737053388884,3.0152,3320.9,3320.8,1.231]
[1737053389085,3.61753,3320.9,3320.8,1.231]
[1737053389488,4.4376,3321.2,3321.1,0.6023]
[1737053389686,2.2208,3321.2,3321.1,0.6023]
[1737053389887,5.236,3321.2,3320.9,3.2078]
[1737053390081,3.61751,3321.1,3320.9,3.81012]
[1737053391186,3.0152,3321.0,3320.8,1.231]
[1737053391386,3.61753,3320.9,3320.8,1.83335]
[1737053391588,5.79943,3320.9,3320.8,1.83335]
[1737053391790,5.1971,3320.9,3320.8,1.83335]
[1737053391985,2.2208,3321.2,3321.1,0.6023]
[1737053393395,2.1819,3321.6,3321.1,0.6023]
[1737053393600,3.2078,3321.9,3321.5,0.60222]
[1737053393900,3.0152,3321.9,3321.8,0.60217]
[1737053395109,3.0152,3321.9,3321.6,4.4388]
[1737053395395,2.84662,3322.1,3322.0,0.60213]
[1737053395799,5.86182,3322.1,3322.0,0.60213]
[1737053396097,5.2597,3322.1,3322.0,0.60213]
[1737053396794,5.2597,3322.1,3322.0,41.40213]
[1737053397598,5.2597,3322.1,3322.0,0.60213]
[1737053398098,5.2597,3322.1,3322.0,41.40213]
[1737053398295,5.2597,3322.1,3322.0,0.60213]
[1737053398696,5.2597,3322.1,3322.0,41.40213]
[1737053398896,5.2597,3322.1,3322.0,0.60213]
[1737053399497,5.2597,3322.1,3322.0,44.60993]
[1737053399695,5.2597,3322.1,3322.0,3.80993]
[1737053399891,2.2445,3322.1,3322.0,3.80993]
[1737053400405,2.1405,3322.7,3322.6,0.60203]
[1737053400598,2.1405,3322.7,3322.6,1.83303]
[1737053400805,5.75771,3322.7,3322.6,1.231]
[1737053401100,5.1557,3322.7,3322.6,1.83303]
[1737053401500,2.1405,3322.7,3322.6,1.83303]
[1737053401695,2.1435,3322.8,3322.6,1.231]
[1737053402000,2.2077,3323.3,3322.6,1.231]
[1737053402200,2.2077,3323.3,3323.1,0.60193]
[1737053402201,3.0152,3323.2,3323.1,0.60193]
[1737053402404,5.2229,3323.3,3323.2,0.60192]
[1737053402606,2.1809,3323.4,3323.1,2.96047846]
[1737053402800,3.8096,3323.9,3323.8,0.60181]
[1737053403000,3.8096,3323.9,3323.8,1.231]
[1737053403205,6.8248,3323.9,3323.8,1.231]
[1737053404404,3.617,3323.9,3323.8,1.231]
[1737053405903,3.0152,3323.9,3323.8,1.231]
[1737053406209,3.61699,3323.9,3323.8,1.83281]
[1737053406405,3.0152,3323.9,3323.8,1.83281]
[1737053406598,3.61699,3323.9,3323.8,1.83281]
[1737053406801,3.0152,3323.9,3323.8,1.83281]
[1737053407405,4.4738,3324.2,3323.8,4.4388]
[1737053407706,5.07554,3324.2,3324.1,0.60175]
[1737053408208,5.2229,3324.2,3324.1,41.40175]
[1737053409202,2.1809,3324.5,3324.4,0.6017]
[1737053409398,2.1809,3324.5,3324.4,3.56217846]
[1737053410209,2.1809,3324.5,3324.4,0.6017]
[1737053410412,5.79778,3324.5,3324.4,0.6017]
[1737053410606,2.41753715,3324.5,3324.4,0.6017]
[1737053410907,2.41753715,3324.5,3324.2,3.2078]
[1737053411108,2.41753715,3324.5,3324.4,0.6017]
[1737053411109,3.01922715,3324.5,3324.4,0.6017]
[1737053411305,2.41753715,3324.5,3324.3,0.60172]
[1737053411506,0.60172,3324.3,3324.2,3.2078]
[1737053411707,3.01925715,3324.3,3324.2,4.4378]
[1737053412203,0.60177,3324.0,3323.9,1.23]
[1737053412706,0.60177,3324.0,3323.8,1.23]
[1737053412707,2.41753715,3324.0,3323.8,1.23]
[1737053412907,6.01359,3323.9,3323.8,1.23]
[1737053413109,8.43112715,3323.9,3323.8,1.23]
[1737053413506,0.60188,3323.4,3323.3,12.645]
[1737053413711,2.41753715,3323.4,3323.2,1.23]
[1737053413917,0.60191,3323.3,3323.2,0.6019]
[1737053414210,3.01944715,3323.3,3323.2,1.8319]
[1737053414408,2.41753715,3323.3,3323.2,1.8319]
[1737053415406,3.01943715,3323.3,3323.2,1.8319]
[1737053415606,3.01943715,3323.3,3323.2,1.23]
[1737053416914,3.01943715,3323.3,3323.2,42.63192]
[1737053417711,2.41753715,3323.3,3323.2,42.63192]
[1737053419308,2.41753715,3323.3,3323.2,42.03]
[1737053419615,2.41753715,3323.3,3323.2,42.63192]
[1737053419616,3.01943715,3323.3,3323.2,42.63192]
[1737053419816,3.01943715,3323.3,3323.2,1.23]
[1737053420407,3.01943715,3323.3,3323.2,1.83192]
[1737053420612,3.01943715,3323.3,3323.2,1.23]
[1737053421014,3.01943715,3323.3,3323.2,1.83192]
[1737053421416,3.2078,3323.5,3323.2,4.19047846]
[1737053421607,5.62533715,3323.5,3323.4,0.60188]
[1737053421919,2.2592,3323.8,3323.7,0.60183]
[1737053422117,2.41753715,3323.8,3323.7,0.60183]
[1737053422315,2.41753715,3323.8,3323.7,41.40183]
[1737053422712,2.75274,3324.2,3324.1,0.60175]
[1737053423112,0.60175,3324.1,3324.0,1.23]
[1737053423317,3.01928715,3324.1,3324.0,1.23]
[1737053424820,3.01928715,3324.1,3323.7,41.40182]
[1737053424821,0.60184,3323.6,3323.5,1.23]
[1737053425011,5.62533715,3323.6,3323.1,1.23]
[1737053425219,6.22725715,3323.2,3323.1,1.23]
[1737053425425,5.62533715,3323.2,3323.1,1.83193]
[1737053425621,6.22725715,3323.2,3323.1,1.83193]
[1737053426130,5.62533715,3323.2,3323.1,1.83193]
[1737053426728,5.62533715,3323.2,3322.7,40.8]
[1737053427036,0.60207,3322.4,3322.3,1.83208]
[1737053427227,6.22740715,3322.4,3322.3,1.23]
[1737053427731,0.60212,3322.1,3322.0,4.65647231]
[1737053427930,2.41753715,3322.1,3322.0,6.48860231]
[1737053428133,3.2078,3322.4,3322.3,0.60208]
[1737053428329,6.22739715,3322.4,3322.3,0.60208]
[1737053428832,5.62533715,3322.4,3322.3,0.60208]
[1737053430137,6.22739715,3322.4,3322.3,0.60208]
[1737053430534,5.62533715,3322.4,3322.3,0.60208]
[1737053431131,6.22739715,3322.4,3322.3,0.60208]
[1737053431439,0.60212,3322.1,3322.0,42.03]
[1737053431638,3.01965715,3322.1,3322.0,42.03]
[1737053432137,2.41753715,3322.1,3322.0,42.63213]
[1737053432439,2.41753715,3322.1,3322.0,41.40213]
[1737053432636,2.41753715,3322.1,3322.0,42.63213]
[1737053433341,3.2078,3322.8,3322.0,50.2378]
[1737053433544,5.62533715,3322.8,3322.7,0.60201]
[1737053433848,3.2078,3322.8,3322.7,0.60201]
[1737053434043,5.62533715,3322.8,3322.7,41.40201]
[1737053434432,5.62533715,3322.8,3322.0,4.4378]
[1737053434645,0.60204,3322.6,3322.5,0.60203]
[1737053434934,0.60204,3322.6,3322.0,4.4378]
[1737053434935,2.41753715,3322.1,3322.0,44.60993]
[1737053435140,2.41753715,3322.1,3322.0,45.84093]
[1737053436132,3.01965715,3322.1,3322.0,41.40213]
[1737053436340,3.01965715,3322.1,3322.0,42.031]
[1737053436539,2.41753715,3322.1,3322.0,42.63313]
[1737053436744,3.2078,3322.3,3322.0,42.63313]
[1737053436937,2.41753715,3322.3,3322.2,0.6021]
[1737053437143,3.2078,3322.9,3322.8,0.60199]
[1737053437448,3.2078,3322.9,3322.8,1.83299]
[1737053437746,6.22730715,3322.9,3322.8,1.83299]
[1737053437938,3.2078,3322.9,3322.8,1.83299]
[1737053438137,5.62533715,3322.9,3322.8,1.83299]
[1737053439143,6.22730715,3322.9,3322.8,1.83299]
[1737053439939,6.22730715,3322.9,3322.8,1.231]
[1737053440437,6.22730715,3322.9,3322.8,1.83299]
[1737053440634,5.62533715,3322.9,3322.8,1.83299]
[1737053440947,6.22730715,3322.9,3322.8,1.83299]
[1737053441143,3.2078,3322.9,3322.8,1.83299]
[1737053441341,6.22730715,3322.9,3322.8,1.83299]
[1737053441537,6.22730715,3322.9,3322.8,1.231]
[1737053441748,5.62533715,3322.9,3322.8,1.83299]
[1737053442249,3.2078,3322.9,3322.8,1.83299]
[1737053442442,3.2078,3323.3,3322.8,1.231]
[1737053442744,2.41753715,3323.1,3322.8,1.231]
[1737053442947,2.41753715,3323.1,3323.0,0.60195]
[1737053445347,3.01946715,3323.1,3323.0,0.60195]
[1737053445547,2.41753715,3323.1,3323.0,0.60195]
[1737053446354,3.01946715,3323.1,3323.0,0.60195]
[1737053446647,2.41753715,3323.1,3322.3,4.65647231]
[1737053446851,3.01957715,3322.5,3322.4,1.83306]
[1737053447550,2.41753715,3322.5,3322.4,1.83306]
[1737053447945,2.41753715,3322.5,3322.4,4.79353846]
[1737053448260,3.2078,3322.9,3322.8,0.60199]
[1737053448649,5.62533715,3322.9,3322.4,4.4388]
[1737053448947,2.41753715,3322.6,3322.5,41.40204]
[1737053449453,2.41753715,3322.6,3322.5,42.63304]
[1737053450248,3.2078,3322.9,3322.8,0.60199]
[1737053450457,5.62533715,3322.9,3322.8,0.60199]
[1737053451251,5.62533715,3322.9,3322.5,42.031]
[1737053451456,2.41753715,3322.7,3322.5,42.031]
[1737053451756,2.41753715,3322.7,3322.6,0.60203]
[1737053453756,2.41753715,3322.7,3322.6,3.56250846]
[1737053453959,3.2078,3322.9,3322.8,0.60199]
[1737053454260,5.62533715,3322.9,3322.8,0.60199]
[1737053454457,6.22730715,3322.9,3322.8,0.60199]
[1737053454655,5.62533715,3322.9,3322.8,0.60199]
[1737053454857,0.60203,3322.7,3322.6,0.60201]
[1737053455056,0.60203,3322.7,3322.6,1.83301]
[1737053455251,3.01956715,3322.7,3322.6,1.83301]
[1737053455458,3.2078,3322.9,3322.8,0.60199]
[1737053455654,5.62533715,3322.9,3322.8,0.60199]
[1737053457664,3.2078,3323.3,3323.2,0.60192]
[1737053457870,5.62533715,3323.3,3323.2,0.60192]
[1737053458565,3.2078,3323.3,3323.2,3.56239846]
[1737053458769,2.2945,3323.6,3323.5,0.60186]
[1737053459065,4.71203715,3323.6,3323.5,1.83286]
[1737053459463,4.71203715,3323.6,3323.5,42.63286]
[1737053459862,5.31387715,3323.6,3323.5,42.63286]
[1737053460259,4.71203715,3323.6,3323.5,42.63286]
[1737053460761,2.41753715,3323.6,3323.5,42.63286]
[1737053460961,3.01937715,3323.6,3323.5,42.63286]
[1737053461363,3.01937715,3323.6,3323.5,1.231]
[1737053461564,2.41753715,3323.6,3323.5,1.83286]
[1737053461764,2.41753715,3323.6,3323.5,42.63286]
[1737053461965,2.3756,3323.7,3323.6,0.60184]
[1737053462366,5.39496715,3323.7,3323.6,0.60184]
[1737053462671,5.39496715,3323.7,3323.5,1.231]
[1737053462672,4.79313715,3323.7,3323.5,1.231]
[1737053462864,3.01937715,3323.6,3323.5,1.231]
[1737053463168,3.01937715,3323.6,3323.5,1.83286]
[1737053463369,2.41753715,3323.6,3323.5,1.83286]
[1737053463568,2.291,3323.9,3323.5,4.79333846]
[1737053463868,2.41753715,3323.7,3323.6,0.60184]
[1737053464266,2.1679,3324.1,3323.6,3.2078]
[1737053464559,5.74608922,3324.7,3324.4,0.6017]
[1737053464761,5.74608922,3324.7,3324.4,4.79217846]
[1737053464960,3.01921715,3324.5,3324.4,1.23]
[1737053465162,2.41753715,3324.5,3324.4,1.8317]
[1737053465968,3.01921715,3324.5,3324.4,1.8317]
[1737053466167,2.41753715,3324.5,3324.4,1.8317]
[1737053466870,3.01921715,3324.5,3324.4,1.23]
[1737053467270,2.41753715,3324.5,3324.4,1.8317]
[1737053467568,3.01921715,3324.5,3324.4,1.23]
[1737053467770,5.62533715,3324.5,3324.4,1.23]
[1737053467970,6.22701715,3324.5,3324.4,1.23]
[1737053468672,6.22701715,3324.5,3324.4,1.8317]
[1737053468967,2.41753715,3324.5,3324.4,1.8317]
[1737053469561,3.2078,3325.0,3324.9,0.60161]
[1737053469963,5.62533715,3325.0,3324.9,0.60161]
[1737053470264,5.62533715,3325.0,3324.4,4.4378]
[1737053470265,5.62533715,3325.0,3324.8,0.60162]
[1737053470465,2.41753715,3324.7,3324.6,0.60166]
[1737053470875,2.41753715,3324.7,3324.6,41.40166]
[1737053471673,2.41753715,3324.7,3324.6,0.60166]
[1737053471862,0.60167,3324.6,3324.5,0.60167]
[1737053472068,2.41753715,3324.5,3324.4,1.23]
[1737053472264,2.41753715,3324.5,3324.4,1.8317]
[1737053473780,2.41753715,3324.5,3324.2,0.60172]
[1737053473976,7.47032,3324.4,3324.3,1.83072]
[1737053474374,9.88785715,3324.4,3324.3,1.83072]
[1737053474573,9.88785715,3324.4,3324.3,1.229]
[1737053474776,0.60175,3324.1,3324.0,0.60177]
[1737053474974,2.41753715,3324.1,3324.0,1.83077]
[1737053475475,0.60181,3323.8,3323.7,53.441]
[1737053475678,0.60181,3323.8,3323.7,55.27183]
[1737053475679,2.41753715,3323.8,3323.7,55.27183]
[1737053476471,4.96003715,3323.8,3323.7,55.27183]
[1737053476783,5.56184715,3323.8,3323.7,55.27183]
[1737053477480,4.96003715,3323.8,3323.7,55.27183]
[1737053477980,4.96003715,3323.8,3323.7,54.67]
[1737053478182,8.76964715,3323.8,3323.7,54.67]
[1737053478579,8.76964715,3323.8,3323.7,14.47183]
[1737053478783,8.76964715,3323.8,3323.7,13.87]
[1737053478978,8.76964715,3323.8,3323.6,1.23]
[1737053478979,0.60183,3323.7,3323.6,1.23]
[1737053479281,0.60192,3323.2,3323.1,40.8]
[1737053479576,2.41753715,3322.9,3322.8,1.23]
[1737053479774,3.01950715,3322.9,3322.8,1.23]
[1737053480185,3.01950715,3322.9,3322.8,1.83199]
[1737053480481,2.41753715,3322.9,3322.8,1.83199]
[1737053480683,2.3968,3323.0,3322.8,4.18482655]
[1737053480875,3.2078,3323.2,3323.1,0.60193]
[1737053481075,3.80973,3323.2,3322.9,0.60197]
[1737053481275,3.2078,3323.2,3323.1,0.60193]
[1737053481779,5.62533715,3323.2,3323.1,0.60193]
[1737053482489,5.62533715,3323.2,3323.1,41.40193]
[1737053484188,2.41753715,3323.2,3323.1,41.40193]
[1737053484383,3.01945715,3323.2,3323.1,40.8]
[1737053484583,3.01945715,3323.2,3323.1,1.23]
[1737053486086,0.60195,3323.1,3322.9,41.40196]
[1737053486284,2.41753715,3323.0,3322.9,40.8]
[1737053486487,3.01948715,3323.0,3322.9,40.8]
[1737053486790,0.60197,3322.9,3322.8,1.23]
[1737053487088,2.97127,3322.9,3322.8,42.03]
[1737053487283,5.38880715,3322.9,3322.8,1.23]
[1737053489592,0.60206,3322.4,3322.3,41.40207]
[1737053489898,2.41753715,3322.4,3322.3,42.63207]
[1737053490299,3.01959715,3322.4,3322.3,1.83207]
[1737053490797,3.01959715,3322.4,3322.3,1.23]
[1737053492991,3.01959715,3322.4,3321.7,0.16219]
[1737053492992,2.41753715,3322.4,3321.7,0.16219]
[1737053493193,2.41753715,3322.0,3321.8,1.23]
[1737053493394,2.41753715,3322.0,3321.9,41.40215]
[1737053493707,3.2078,3322.7,3321.9,40.8]
[1737053494002,3.2078,3322.7,3322.6,2.90009583]
[1737053494199,3.2078,3323.2,3322.6,3.52806583]
[1737053494495,3.2078,3323.2,3323.1,2.89999583]
[1737053494695,3.2078,3323.2,3323.1,41.40193]
[1737053494901,6.22725715,3323.2,3323.1,40.8]
[1737053495098,0.60199,3322.8,3322.7,4.7979]
[1737053495401,2.41753715,3322.8,3322.7,1.23]
[1737053495703,3.01952715,3322.8,3322.7,42.03]
[1737053496199,3.01952715,3322.8,3322.7,1.23]
[1737053497001,6.22732715,3322.8,3322.7,1.23]
[1737053497202,8.77772715,3322.8,3322.7,1.23]
[1737053498199,8.17573715,3322.8,3322.5,0.60204]
[1737053498494,0.60206,3322.5,3322.4,0.60205]
[1737053498705,0.60206,3322.5,3322.4,1.83205]
[1737053499006,3.01959715,3322.5,3322.4,1.83205]
[1737053499400,2.41753715,3322.5,3322.4,1.83205]
[1737053501214,3.01957715,3322.5,3322.4,1.23]
[1737053501512,3.01957715,3322.5,3322.4,1.83206]
[1737053502612,2.41753715,3322.5,3322.4,1.83206]
[1737053503405,2.41753715,3322.5,3322.4,42.63206]
[1737053504507,2.41753715,3322.5,3322.4,1.23]
[1737053504720,0.60207,3322.4,3322.3,0.60207]
[1737053504907,2.41753715,3322.4,3322.3,1.83208]
[1737053505616,6.22739715,3322.4,3322.3,1.23]
[1737053506218,2.41753715,3322.4,3322.3,1.83208]
[1737053507019,3.01959715,3322.4,3322.3,1.83208]
[1737053507208,1.50521,3322.3,3321.7,0.16219]
[1737053507514,6.22750715,3321.8,3321.7,0.16219]
[1737053507917,8.71650715,3321.8,3321.7,0.16219]
[1737053515116,6.29897,3321.8,3321.7,0.16219]
[1737053515318,8.71650715,3321.8,3321.7,0.16219]
[1737053516128,5.50870715,3321.8,3321.7,0.16219]
[1737053516424,8.71650715,3321.8,3321.7,0.16219]
[1737053517120,11.01564758,3321.8,3321.7,0.16219]
[1737053519926,0.6023,3321.1,3321.0,1.83231]
[1737053520425,0.6023,3321.1,3321.0,0.60231]
[1737053520426,3.01983715,3321.1,3321.0,0.60231]
[1737053520630,3.01983715,3321.1,3321.0,1.83231]
[1737053520831,3.01983715,3321.1,3321.0,1.23]
[1737053521133,3.01983715,3321.1,3321.0,1.83232]
[1737053521328,3.01983715,3321.1,3321.0,1.23]
[1737053522019,3.01983715,3321.1,3321.0,1.83232]
[1737053522636,3.2078,3321.6,3321.0,3.52914043]
[1737053522927,2.41753715,3321.5,3321.4,2.90138043]
[1737053523132,2.41753715,3321.5,3321.1,2.29914043]
[1737053523321,2.41753715,3321.2,3321.1,0.6023]
[1737053523526,2.41753715,3321.4,3321.0,2.73577]
[1737053523726,3.2078,3321.6,3321.2,1.5057]
[1737053523925,3.2078,3321.6,3321.5,0.60222]
[1737053524125,0.60224,3321.4,3321.3,2.3236]
[1737053524325,0.60226,3321.3,3321.2,0.60226]
[1737053524629,3.2078,3321.6,3321.5,0.60222]
[1737053525330,3.2078,3321.6,3321.5,5.26892]
[1737053525331,2.41753715,3321.6,3321.5,5.26892]
[1737053525526,3.01974715,3321.6,3321.5,5.26892]
[1737053525732,2.41753715,3321.6,3321.5,5.26892]
[1737053525931,2.41753715,3321.6,3321.2,40.8]
[1737053526242,0.60226,3321.4,3321.3,0.60224]
[1737053526531,5.62533715,3321.6,3321.5,0.60222]
[1737053526726,2.41753715,3321.6,3321.5,0.60222]
[1737053527328,5.5486,3322.0,3321.5,0.60222]
[1737053527529,3.2078,3322.0,3321.9,0.60215]
[1737053527734,5.62533715,3322.0,3321.9,0.60215]
[1737053527931,6.22746715,3322.0,3321.9,0.60215]
[1737053528130,5.62533715,3322.0,3321.9,0.60215]
[1737053529231,0.60212,3322.1,3321.9,0.60215]
[1737053529434,3.2078,3322.4,3321.8,3.6525]
[1737053529634,2.41753715,3322.3,3322.2,0.6021]
[1737053529940,0.6021,3322.2,3321.9,0.60215]
[1737053530237,2.41753715,3322.0,3321.9,0.60215]
[1737053530633,3.01966715,3322.0,3321.9,0.60215]
[1737053531034,2.41753715,3322.0,3321.9,0.60215]
[1737053532331,5.62533715,3322.0,3321.7,2.4057]
[1737053532539,0.60224,3321.4,3321.3,5.31414658]
[1737053532734,3.01977715,3321.4,3321.3,6.54415658]
[1737053532938,3.2078,3321.6,3321.3,5.94189658]
[1737053533238,0.60212,3322.1,3321.6,2.10773]
[1737053533437,0.60215,3322.0,3321.8,0.60217]
[1737053533644,2.41753715,3321.7,3321.6,2.99501]
[1737053533946,0.60216,3321.9,3321.8,0.60217]
[1737053534147,7.78066,3321.9,3321.8,0.60217]
[1737053534437,10.19819715,3321.9,3321.8,0.60217]
[1737053534739,0.60218,3321.8,3321.7,0.60218]
[1737053534937,3.01971715,3321.8,3321.7,0.60218]
[1737053535243,3.01970715,3321.8,3321.7,0.60218]
[1737053535637,2.41753715,3321.8,3321.7,0.60219]
[1737053535844,3.2078,3322.4,3321.7,1.50547]
[1737053536137,0.60211,3322.2,3322.1,0.6021]
[1737053536445,3.2078,3322.4,3322.3,0.60208]
[1737053536748,4.8201,3322.8,3322.7,0.60201]
[1737053536938,5.42209,3322.8,3322.7,0.60201]
[1737053537137,7.23763715,3322.8,3322.3,2.29914043]
[1737053537438,4.8201,3322.8,3322.7,0.60201]
[1737053537644,5.42209,3322.8,3322.7,0.60201]
[1737053537847,7.23763715,3322.8,3322.7,0.60201]
[1737053538047,3.2078,3323.3,3322.7,2.29914043]
[1737053538247,2.41753715,3323.1,3323.0,2.90109043]
[1737053538450,2.41753715,3323.1,3323.0,4.13109043]
[1737053539553,2.41753715,3323.1,3323.0,7.33889043]
[1737053539854,3.2078,3323.8,3323.7,0.60183]
[1737053540055,3.2078,3323.8,3323.7,2.90097043]
[1737053540252,5.62533715,3323.8,3323.7,2.90097043]
[1737053540651,3.2078,3323.8,3323.7,2.90097043]
[1737053541255,0.60176,3324.1,3323.9,0.60178]
[1737053541555,2.41753715,3324.1,3324.0,1.83177]
[1737053542056,2.41753715,3324.1,3324.0,4.13091043]
[1737053542260,2.444,3324.7,3324.5,0.60168]
[1737053542463,2.41753715,3324.5,3324.3,3.2078]
[1737053542659,2.41753715,3324.5,3324.4,0.6017]
[1737053542854,2.41753715,3324.5,3324.3,6.10866043]
[1737053543061,2.41753715,3324.5,3324.3,0.6017]
[1737053543262,2.41753715,3324.5,3324.4,40.8]
[1737053543468,0.60172,3324.3,3323.9,5.6283]
[1737053543655,3.04571,3324.4,3324.2,0.60173]
[1737053543861,3.04571,3324.4,3324.1,0.60174]
[1737053544163,2.41753715,3324.1,3324.0,1.83177]
[1737053544363,2.41753715,3324.3,3324.2,0.60174]
[1737053544566,2.41753715,3324.3,3324.2,2.90088043]
[1737053545258,2.444,3324.4,3324.3,0.60172]
[1737053545461,2.444,3324.4,3324.2,2.29914043]
[1737053545462,2.41753715,3324.3,3324.2,2.90087043]
[1737053548061,3.2078,3325.1,3324.2,2.29914043]
[1737053548269,2.41753715,3324.6,3324.3,3.2078]
[1737053548569,2.41753715,3324.6,3324.5,0.60168]
[1737053550263,3.2078,3325.1,3324.5,0.60168]
[1737053550264,3.2078,3325.1,3325.0,0.60159]
[1737053550467,7.347,3325.2,3325.0,1.83158]
[1737053550666,6.22690715,3325.1,3325.0,1.23]
[1737053551365,5.62533715,3325.1,3325.0,1.83159]
[1737053551570,5.62533715,3325.1,3325.0,1.23]
[1737053551773,5.62533715,3325.1,3325.0,1.83159]
[1737053555671,5.62533715,3325.1,3325.0,1.23]
[1737053555876,5.62533715,3325.1,3325.0,1.83159]
[1737053558480,2.41753715,3325.1,3325.0,1.83159]
[1737053559674,3.01910715,3325.1,3325.0,1.83159]
[1737053559880,3.01910715,3325.1,3325.0,1.23]
[1737053560380,2.41753715,3325.1,3325.0,1.83159]
[1737053560581,3.01910715,3325.1,3325.0,1.83159]
[1737053560776,3.01910715,3325.1,3325.0,1.83059]
[1737053561285,2.41753715,3325.1,3325.0,1.83059]
[1737053561485,3.01910715,3325.1,3325.0,1.83059]
[1737053562383,2.41753715,3325.1,3325.0,1.83059]
[1737053564087,3.01910715,3325.1,3325.0,1.83059]
[1737053564585,2.41753715,3325.1,3324.6,2.29914043]
[1737053564777,0.60161,3325.0,3324.9,0.60159]
[1737053564978,0.60159,3325.1,3325.0,0.60157]
[1737053565178,2.41753715,3324.8,3324.7,1.229]
[1737053565385,2.41753715,3324.8,3324.7,1.83065]
[1737053565785,2.41753715,3324.8,3324.7,42.63065]
[1737053566585,2.41753715,3324.8,3324.7,0.60165]
[1737053566783,2.41753715,3324.8,3324.7,1.83065]
[1737053569086,2.41753715,3324.8,3324.7,1.229]
[1737053569298,2.41753715,3324.8,3324.3,2.29914043]